fUST/lending_fUST_20240801
["ID","MTS","AMOUNT","RATE_DAILY","PERIOD"]
[333811384,1722526047478,-1297.01,0.00013698,2]
[333811385,1722526047500,-500.0,0.00013698,2]
[333811386,1722526047522,-3957.99,0.00013698,2]
[333811387,1722526047543,-508.35,0.00013698,2]
[333811388,1722526047685,-500.0,0.00013698,2]
[333811389,1722526047708,-3617.98,0.00013698,2]
[333811390,1722526047731,-500.0,0.00013698,2]
[333811391,1722526047754,-972.85,0.00013698,2]
[333811392,1722526047775,-500.0,0.00013698,2]
[333811393,1722526047798,-500.0,0.00013698,2]
[333811394,1722526047819,-500.0,0.00013698,2]
[333811395,1722526047841,-500.0,0.00013698,2]
[333811396,1722526047862,-721.5,0.00013698,2]
[333811397,1722526047883,-272.03462921,0.00013698,2]
[333811398,1722526047905,-722.48,0.00013698,2]
[333811399,1722526047925,-500.0,0.00013698,2]
[333811400,1722526047946,-609.26,0.00013698,2]
[333811401,1722526047967,-500.0,0.00013698,2]
[333811402,1722526047988,-500.0,0.00013698,2]
[333811403,1722526048010,-500.0,0.00013698,2]
[333811404,1722526048031,-257.77649434,0.00013698,2]
[333811405,1722526048053,-500.0,0.00013698,2]
[333811406,1722526048074,-672.01,0.00013698,2]
[333811407,1722526048096,-500.0,0.00013698,2]
[333811408,1722526048117,-608.82070587,0.00013698,2]
[333811409,1722526048139,-271.06783923,0.00013698,2]
[333811410,1722526048161,-1053.29,0.00013698,2]
[333811411,1722526048183,-500.0,0.00013698,2]
[333811412,1722526048204,-500.0,0.00013698,2]
[333811413,1722526048225,-500.0,0.00013698,2]
[333811414,1722526048245,-500.0,0.00013698,2]
[333811415,1722526048266,-500.0,0.00013698,2]
[333811416,1722526048289,-500.2909547,0.00013698,2]
[333811417,1722526048312,-861.21,0.00013698,2]
[333811418,1722526048334,-500.0,0.00013698,2]
[333811419,1722526048355,-500.0,0.00013698,2]
[333811420,1722526048377,-500.0,0.00013698,2]
[333811421,1722526048398,-500.0,0.00013698,2]
[333811422,1722526048420,-2201.57,0.00013698,2]
[333811423,1722526048444,-500.0,0.00013698,2]
[333811424,1722526048468,-1202.13,0.00013698,2]
[333811425,1722526048492,-691.92,0.00013698,2]
[333811426,1722526048515,-500.0,0.00013698,2]
[333811427,1722526048537,-556.9,0.00013698,2]
[333811428,1722526048559,-500.0,0.00013698,2]
[333811429,1722526048582,-619.0,0.00013698,2]
[333811430,1722526048605,-500.0,0.00013698,2]
[333811431,1722526048627,-500.0,0.00013698,2]
[333811432,1722526048650,-742.28,0.00013698,2]
[333811433,1722526048673,-514.05161344,0.00013698,2]
[333811434,1722526048696,-500.0,0.00013698,2]
[333811435,1722526048719,-500.0,0.00013698,2]
[333811436,1722526048741,-500.0,0.00013698,2]
[333811437,1722526048764,-1317.09,0.00013698,2]
[333811438,1722526048786,-500.0,0.00013698,2]
[333811439,1722526048809,-500.0,0.00013698,2]
[333811440,1722526048830,-500.0,0.00013698,2]
[333811441,1722526048851,-500.0,0.00013698,2]
[333811442,1722526048872,-500.0,0.00013698,2]
[333811443,1722526048893,-500.0,0.00013698,2]
[333811444,1722526048914,-500.0,0.00013698,2]
[333811445,1722526048935,-592.15,0.00013698,2]
[333811446,1722526048956,-712.35,0.00013698,2]
[333811447,1722526048978,-500.0,0.00013698,2]
[333811448,1722526048999,-504.4296012,0.00013698,2]
[333811449,1722526049020,-500.0,0.00013698,2]
[333811450,1722526049042,-500.0,0.00013698,2]
[333811451,1722526049064,-500.0,0.00013698,2]
[333811452,1722526049085,-500.0,0.00013698,2]
[333811453,1722526049107,-500.0,0.00013698,2]
[333811454,1722526049129,-500.0,0.00013698,2]
[333811455,1722526049150,-500.0,0.00013698,2]
[333811456,1722526049172,-724.93,0.00013698,2]
[333811457,1722526049193,-500.0,0.00013698,2]
[333811458,1722526049216,-500.0,0.00013698,2]
[333811459,1722526049239,-526.03,0.00013698,2]
[333811460,1722526049263,-500.0,0.00013698,2]
[333811461,1722526049285,-500.0,0.00013698,2]
[333811462,1722526049311,-502.58801939,0.00013698,2]
[333811463,1722526049334,-796.77,0.00013698,2]
[333811464,1722526049358,-1079.38,0.00013698,2]
[333811465,1722526049383,-1079.38,0.00013698,2]
[333811466,1722526049409,-1079.38,0.00013698,2]
[333811467,1722526049436,-1079.38,0.00013698,2]
[333811468,1722526049459,-500.0,0.00013698,2]
[333811469,1722526049481,-500.0,0.00013698,2]
[333811470,1722526049506,-1079.38,0.00013698,2]
[333811471,1722526049531,-1079.38,0.00013698,2]
[333811472,1722526049555,-1079.38,0.00013698,2]
[333811473,1722526049579,-1079.38,0.00013698,2]
[333811474,1722526049603,-1079.38,0.00013698,2]
[333811475,1722526049627,-1079.38,0.00013698,2]
[333811476,1722526049650,-1079.38,0.00013698,2]
[333811477,1722526049673,-1079.38,0.00013698,2]
[333811478,1722526049696,-1079.38,0.00013698,2]
[333811479,1722526049720,-1079.38,0.00013698,2]
[333811480,1722526049742,-1079.38,0.00013698,2]
[333811481,1722526049765,-1079.38,0.00013698,2]
[333811482,1722526049788,-1079.38,0.00013698,2]
[333811483,1722526049810,-976.6,0.00013698,2]
[333811484,1722526049834,-1079.38,0.00013698,2]
[333811485,1722526049940,-500.0,0.00013698,2]
[333811486,1722526049969,-1079.38,0.00013698,2]
[333811487,1722526049993,-1079.38,0.00013698,2]
[333811488,1722526050015,-500.0,0.00013698,2]
[333811489,1722526050043,-1079.38,0.00013698,2]
[333811490,1722526050066,-1079.38,0.00013698,2]
[333811491,1722526050090,-1079.38,0.00013698,2]
[333811492,1722526050112,-1079.4239,0.00013698,2]
[333811493,1722526050133,-500.0,0.00013698,2]
[333811494,1722526050155,-500.0,0.00013698,2]
[333811495,1722526050177,-500.0,0.00013698,2]
[333811496,1722526050199,-500.0,0.00013698,2]
[333811497,1722526050220,-331.501111,0.00013699,2]
[333811498,1722526050245,-4396.56,0.00013961,2]
[333811499,1722526050268,-4396.56,0.00013961,2]
[333811500,1722526050294,-4396.56,0.00013961,2]
[333811501,1722526050320,-4396.56,0.00013961,2]
[333811502,1722526050343,-4396.56,0.00013961,2]
[333811503,1722526050368,-4396.56,0.00013971,2]
[333811504,1722526050394,-4396.56,0.00013971,2]
[333811505,1722526050419,-4396.56,0.00013971,2]
[333811506,1722526050444,-4396.56,0.00013971,2]
[333811507,1722526050468,-4396.56,0.00013971,2]
[333811508,1722526050491,-4396.56,0.00013971,2]
[333811509,1722526050518,-4396.56,0.00013971,2]
[333811510,1722526050542,-4396.56,0.00013971,2]
[333811511,1722526050566,-4396.56,0.00013971,2]
[333811512,1722526050590,-4396.7209,0.00013971,2]
[333811513,1722526050612,-500.0,0.00013972,2]
[333811514,1722526050634,-500.0,0.00013972,2]
[333811515,1722526050656,-500.0,0.00013972,2]
[333811516,1722526050678,-500.0,0.00013972,2]
[333811517,1722526050700,-500.0,0.00013972,2]
[333811518,1722526050722,-500.0,0.00013972,2]
[333811519,1722526050744,-621.66820482,0.00013972,2]
[333811520,1722526050766,-132260.47543784,0.00013972,2]
[333811521,1722526051187,-500.0,0.00013698,2]
[333811522,1722526051209,-646.98,0.00013698,2]
[333811523,1722526051229,-500.0,0.00013698,2]
[333811524,1722526051250,-44977.02245871,0.00013972,2]
[333811525,1722526051271,-500.0,0.00013972,2]
[333811526,1722526051292,-500.0,0.00013972,2]
[333811527,1722526051314,-508.06955036,0.00013972,2]
[333811528,1722526051335,-500.0,0.00013972,2]
[333811529,1722526051356,-500.0,0.00013972,2]
[333811530,1722526051378,-500.0,0.00013972,2]
[333811531,1722526051399,-500.0,0.00013972,2]
[333811532,1722526051421,-500.0,0.00013972,2]
[333811533,1722526051442,-500.0,0.00013972,2]
[333811534,1722526051463,-500.0,0.00013972,2]
[333811535,1722526051485,-500.0,0.00013972,2]
[333811536,1722526051506,-500.0,0.00013972,2]
[333811537,1722526051527,-500.0,0.00013972,2]
[333811538,1722526051548,-500.0,0.00013972,2]
[333811539,1722526051568,-455.35880274,0.00013972,2]
[333811540,1722526051589,-500.0,0.00013972,2]
[333811541,1722526051610,-500.0,0.00013972,2]
[333811542,1722526051630,-500.0,0.00013972,2]
[333811543,1722526051652,-646.69,0.00013972,2]
[333811544,1722526051673,-466.40451671,0.00013972,2]
[333811545,1722526051693,-500.0,0.00013972,2]
[333811546,1722526051715,-500.0,0.00013972,2]
[333811547,1722526051736,-500.0,0.00013972,2]
[333811548,1722526051758,-272.89653633,0.00013972,2]
[333811549,1722526051780,-500.0,0.00013972,2]
[333811550,1722526051802,-500.0,0.00013972,2]
[333811551,1722526051824,-500.0,0.00013972,2]
[333811552,1722526051850,-505.16719484,0.00013972,2]
[333811553,1722526051871,-500.0,0.00013972,2]
[333811554,1722526051892,-500.0,0.00013972,2]
[333811555,1722526051912,-501.82770211,0.00013972,2]
[333811556,1722526051933,-516.89597913,0.00013972,2]
[333811557,1722526051953,-500.0,0.00013972,2]
[333811558,1722526051974,-500.0,0.00013972,2]
[333811559,1722526051997,-500.0,0.00013972,2]
[333811560,1722526052109,-500.0,0.00013972,2]
[333811561,1722526052131,-500.0,0.00013972,2]
[333811562,1722526052150,-500.0,0.00013972,2]
[333811563,1722526052172,-500.0,0.00013972,2]
[333811564,1722526052193,-500.0,0.00013972,2]
[333811565,1722526052214,-500.0,0.00013972,2]
[333811566,1722526052235,-500.0,0.00013972,2]
[333811567,1722526052256,-500.0,0.00013972,2]
[333811568,1722526052276,-500.0,0.00013972,2]
[333811569,1722526052302,-500.0,0.00013972,2]
[333811570,1722526052323,-500.0,0.00013972,2]
[333811571,1722526052345,-500.0,0.00013972,2]
[333811572,1722526052366,-502.40720152,0.00013972,2]
[333811573,1722526052387,-500.0,0.00013972,2]
[333811574,1722526052407,-500.0,0.00013972,2]
[333811575,1722526052428,-500.0,0.00013972,2]
[333811576,1722526052450,-500.0,0.00013972,2]
[333811577,1722526052471,-500.0,0.00013972,2]
[333811578,1722526052493,-500.0,0.00013972,2]
[333811579,1722526052514,-500.0,0.00013972,2]
[333811580,1722526052535,-500.0,0.00013972,2]
[333811581,1722526052556,-500.0,0.00013972,2]
[333811582,1722526052578,-500.0,0.00013972,2]
[333811583,1722526052601,-500.0,0.00013972,2]
[333811584,1722526052622,-150.39464237,0.00013972,2]
[333811585,1722526052644,-500.0,0.00013972,2]
[333811586,1722526052665,-500.0,0.00013972,2]
[333811587,1722526052687,-500.0,0.00013972,2]
[333811588,1722526052710,-579.61587837,0.00013972,2]
[333811589,1722526052736,-500.0,0.00013972,2]
[333811590,1722526052758,-500.0,0.00013972,2]
[333811591,1722526052780,-500.0,0.00013972,2]
[333811592,1722526052802,-500.0,0.00013972,2]
[333811593,1722526052823,-505.56269311,0.00013972,2]
[333811594,1722526052846,-151.0,0.00013972,2]
[333811595,1722526052868,-481.54945473,0.00013972,2]
[333811596,1722526052889,-500.0,0.00013972,2]
[333811597,1722526052911,-1212.13,0.00013972,2]
[333811598,1722526052932,-500.0,0.00013972,2]
[333811599,1722526052955,-1077.73,0.00013972,2]
[333811600,1722526052977,-500.0,0.00013972,2]
[333811601,1722526052999,-151.0,0.00013972,2]
[333811602,1722526053020,-500.0,0.00013972,2]
[333811603,1722526053041,-500.0,0.00013972,2]
[333811604,1722526053065,-500.0,0.00013972,2]
[333811605,1722526053087,-500.0,0.00013972,2]
[333811606,1722526053110,-500.0,0.00013972,2]
[333811607,1722526053132,-500.0,0.00013972,2]
[333811608,1722526053155,-555.92,0.00013972,2]
[333811609,1722526053176,-500.0,0.00013972,2]
[333811610,1722526053198,-500.0,0.00013972,2]
[333811611,1722526053220,-500.0,0.00013972,2]
[333811612,1722526053242,-637.27,0.00013972,2]
[333811613,1722526053265,-500.0,0.00013972,2]
[333811614,1722526053289,-500.0,0.00013972,2]
[333811615,1722526053316,-500.0,0.00013972,2]
[333811616,1722526053340,-576.59,0.00013972,2]
[333811617,1722526053364,-500.0,0.00013972,2]
[333811618,1722526053388,-500.0,0.00013972,2]
[333811619,1722526053411,-500.0,0.00013972,2]
[333811620,1722526053433,-500.0,0.00013972,2]
[333811621,1722526053456,-500.0,0.00013972,2]
[333811622,1722526053480,-500.0,0.00013972,2]
[333811623,1722526053504,-500.0,0.00013972,2]
[333811624,1722526053527,-500.0,0.00013972,2]
[333811625,1722526053551,-500.0,0.00013972,2]
[333811626,1722526053574,-500.0,0.00013972,2]
[333811627,1722526053597,-500.0,0.00013972,2]
[333811628,1722526053620,-500.0,0.00013972,2]
[333811629,1722526053646,-500.0,0.00013972,2]
[333811630,1722526053670,-522.23,0.00013972,2]
[333811631,1722526053693,-500.0,0.00013972,2]
[333811632,1722526053716,-500.0,0.00013972,2]
[333811633,1722526053739,-923.56,0.00013972,2]
[333811634,1722526053764,-541.8,0.00013972,2]
[333811635,1722526053788,-500.0,0.00013972,2]
[333811636,1722526053811,-500.0,0.00013972,2]
[333811637,1722526053833,-500.0,0.00013972,2]
[333811638,1722526053856,-500.0,0.00013972,2]
[333811639,1722526053879,-500.0,0.00013972,2]
[333811640,1722526053901,-801.84,0.00013972,2]
[333811641,1722526053924,-500.0,0.00013972,2]
[333811642,1722526053947,-500.0,0.00013972,2]
[333811643,1722526053971,-500.0,0.00013972,2]
[333811644,1722526053994,-500.0,0.00013972,2]
[333811645,1722526054016,-506.2126841,0.00013972,2]
[333811646,1722526054040,-500.0,0.00013972,2]
[333811647,1722526054064,-500.0,0.00013972,2]
[333811648,1722526054099,-500.0,0.00013972,2]
[333811649,1722526054222,-500.0,0.00013972,2]
[333811650,1722526054251,-1755.58,0.00013972,2]
[333811651,1722526054277,-500.0,0.00013972,2]
[333811652,1722526054308,-500.0,0.00013972,2]
[333811653,1722526054337,-500.0,0.00013972,2]
[333811654,1722526054364,-500.0,0.00013972,2]
[333811655,1722526054390,-500.0,0.00013972,2]
[333811656,1722526054414,-500.0,0.00013972,2]
[333811657,1722526054440,-500.0,0.00013972,2]
[333811658,1722526054472,-575.58,0.00013972,2]
[333811659,1722526054497,-500.0,0.00013972,2]
[333811660,1722526054523,-500.0,0.00013972,2]
[333811661,1722526054548,-500.0,0.00013972,2]
[333811662,1722526054572,-500.0,0.00013972,2]
[333811663,1722526054598,-500.0,0.00013972,2]
[333811664,1722526054624,-716.89,0.00013972,2]
[333811665,1722526054649,-738.18,0.00013972,2]
[333811666,1722526054674,-500.0,0.00013972,2]
[333811667,1722526054702,-500.0,0.00013972,2]
[333811668,1722526054727,-500.0,0.00013972,2]
[333811669,1722526054751,-500.0,0.00013972,2]
[333811670,1722526054775,-500.0,0.00013972,2]
[333811671,1722526054800,-1969.14,0.00013972,2]
[333811672,1722526054827,-534.35,0.00013972,2]
[333811673,1722526054851,-500.0,0.00013972,2]
[333811674,1722526054875,-500.0,0.00013972,2]
[333811675,1722526054899,-417.11458571,0.00013972,2]
[333811676,1722526054924,-519.36,0.00013972,2]
[333811677,1722526054949,-705.26,0.00013972,2]
[333811678,1722526054974,-500.0,0.00013972,2]
[333811679,1722526054999,-1120.37,0.00013972,2]
[333811680,1722526055025,-567.50538912,0.00013972,2]
[333811681,1722526055050,-796.6,0.00013972,2]
[333811682,1722526055075,-514.66,0.00013972,2]
[333811683,1722526055101,-1051.75,0.00013972,2]
[333811684,1722526055125,-761.76,0.00013972,2]
[333811685,1722526055149,-507.56723377,0.00013972,2]
[333811686,1722526055174,-500.0,0.00013972,2]
[333811687,1722526055198,-678.47,0.00013972,2]
[333811688,1722526055223,-3752.15,0.00013972,2]
[333811689,1722526055246,-500.0,0.00013972,2]
[333811690,1722526055270,-500.0,0.00013972,2]
[333811691,1722526055295,-500.0,0.00013972,2]
[333811692,1722526055318,-500.0,0.00013972,2]
[333811693,1722526055341,-500.0,0.00013972,2]
[333811694,1722526055364,-500.0,0.00013972,2]
[333811695,1722526055391,-1297.01,0.00013972,2]
[333811696,1722526055416,-500.0,0.00013972,2]
[333811697,1722526055440,-3957.99,0.00013972,2]
[333811698,1722526055463,-508.35,0.00013972,2]
[333811699,1722526055487,-152.246061,0.00013972,2]
[333811700,1722526055510,-500.0,0.00013972,2]
[333811701,1722526055534,-3617.98,0.00013972,2]
[333811702,1722526055556,-151.0,0.00013972,2]
[333811703,1722526055579,-972.85,0.00013972,2]
[333811704,1722526055601,-500.0,0.00013972,2]
[333811705,1722526055622,-500.0,0.00013972,2]
[333811706,1722526055644,-500.0,0.00013972,2]
[333811707,1722526055666,-500.0,0.00013972,2]
[333811708,1722526055689,-721.5,0.00013972,2]
[333811709,1722526055712,-722.48,0.00013972,2]
[333811710,1722526055736,-609.26,0.00013972,2]
[333811711,1722526055761,-500.0,0.00013972,2]
[333811712,1722526055786,-500.0,0.00013972,2]
[333811713,1722526055810,-672.01,0.00013972,2]
[333811714,1722526055833,-151.0,0.00013972,2]
[333811715,1722526055863,-500.0,0.00013972,2]
[333811716,1722526055885,-1053.29,0.00013972,2]
[333811717,1722526055908,-500.0,0.00013972,2]
[333811718,1722526055929,-500.0,0.00013972,2]
[333811719,1722526055955,-500.0,0.00013972,2]
[333811720,1722526055976,-500.0,0.00013972,2]
[333811721,1722526055997,-500.0,0.00013972,2]
[333811722,1722526056019,-861.21,0.00013972,2]
[333811723,1722526056043,-500.0,0.00013972,2]
[333811724,1722526056066,-500.0,0.00013972,2]
[333811725,1722526056089,-500.0,0.00013972,2]
[333811726,1722526056112,-512.79591096,0.00013972,2]
[333811727,1722526056135,-2201.57,0.00013972,2]
[333811728,1722526056158,-1202.13,0.00013972,2]
[333811729,1722526056179,-151.0,0.00013972,2]
[333811730,1722526056202,-691.92,0.00013972,2]
[333811731,1722526056226,-500.0,0.00013972,2]
[333811732,1722526056249,-556.9,0.00013972,2]
[333811733,1722526056273,-500.0,0.00013972,2]
[333811734,1722526056305,-619.0,0.00013972,2]
[333811735,1722526056421,-405.283962,0.00013972,2]
[333811736,1722526056445,-500.0,0.00013972,2]
[333811737,1722526056470,-500.0,0.00013972,2]
[333811738,1722526056493,-742.28,0.00013972,2]
[333811739,1722526056515,-405.283962,0.00013972,2]
[333811740,1722526056539,-500.0,0.00013972,2]
[333811741,1722526056562,-505.97444456,0.00013972,2]
[333811742,1722526056585,-1317.09,0.00013972,2]
[333811743,1722526056608,-500.0,0.00013972,2]
[333811744,1722526056633,-509.01525306,0.00013972,2]
[333811745,1722526056655,-504.70838598,0.00013972,2]
[333811746,1722526056677,-500.0,0.00013972,2]
[333811747,1722526056700,-151.0,0.00013972,2]
[333811748,1722526056723,-592.15,0.00013972,2]
[333811749,1722526056749,-712.35,0.00013972,2]
[333811750,1722526056771,-500.0,0.00013972,2]
[333811751,1722526056793,-500.0,0.00013972,2]
[333811752,1722526056815,-151.0,0.00013972,2]
[333811753,1722526056837,-500.0,0.00013972,2]
[333811754,1722526056859,-500.0,0.00013972,2]
[333811755,1722526056901,-500.0,0.00013972,2]
[333811756,1722526056922,-506.86776513,0.00013972,2]
[333811757,1722526056944,-500.0,0.00013972,2]
[333811758,1722526056967,-402.31522869,0.00013972,2]
[333811759,1722526056992,-724.93,0.00013972,2]
[333811760,1722526057015,-151.0,0.00013972,2]
[333811761,1722526058489,-500.0,0.00013972,2]
[333811762,1722526058519,-526.03,0.00013972,2]
[333811763,1722526058544,-435.018428,0.00013972,2]
[333811764,1722526058567,-435.018428,0.00013972,2]
[333811765,1722526058590,-500.0,0.00013972,2]
[333811766,1722526058613,-796.77,0.00013972,2]
[333811767,1722526058635,-500.0,0.00013972,2]
[333811768,1722526058657,-151.0,0.00013972,2]
[333811769,1722526058681,-500.0,0.00013972,2]
[333811770,1722526058703,-500.0,0.00013972,2]
[333811771,1722526058727,-151.0,0.00013972,2]
[333811772,1722526058749,-976.6,0.00013972,2]
[333811773,1722526058771,-500.0,0.00013972,2]
[333811774,1722526058793,-500.0,0.00013972,2]
[333811775,1722526058814,-500.0,0.00013972,2]
[333811776,1722526058836,-151.0,0.00013972,2]
[333811777,1722526058858,-500.0,0.00013972,2]
[333811778,1722526058880,-151.0,0.00013972,2]
[333811779,1722526058901,-151.0,0.00013972,2]
[333811780,1722526058923,-524.19675787,0.00013972,2]
[333811781,1722526058956,-200.0,0.00013993,2]
[333811782,1722526058977,-200.12635228,0.00013993,2]
[333811783,1722526059003,-200.0,0.00014082,2]
[333811784,1722526059024,-200.0,0.00014146,2]
[333811785,1722526059049,-420.0,0.00014189,2]
[333811786,1722526059071,-500.0,0.00014246,2]
[333811787,1722526059092,-500.0,0.00014246,2]
[333811788,1722526059115,-500.0,0.00014246,2]
[333811789,1722526059137,-500.0,0.00014246,2]
[333811790,1722526059160,-500.0,0.00014246,2]
[333811791,1722526059182,-403.58371325,0.00014246,2]
[333811792,1722526059203,-500.0,0.00014246,2]
[333811793,1722526059226,-500.0,0.00014246,2]
[333811794,1722526059249,-500.0,0.00014246,2]
[333811795,1722526059271,-500.0,0.00014246,2]
[333811796,1722526059293,-500.0,0.00014246,2]
[333811797,1722526059318,-500.0,0.00014246,2]
[333811798,1722526059341,-500.0,0.00014246,2]
[333811799,1722526059365,-646.69,0.00014246,2]
[333811800,1722526059390,-500.0,0.00014246,2]
[333811801,1722526059413,-500.0,0.00014246,2]
[333811802,1722526059445,-500.0,0.00014246,2]
[333811803,1722526059468,-264.35422318,0.00014246,2]
[333811804,1722526059494,-500.0,0.00014246,2]
[333811805,1722526059517,-500.0,0.00014246,2]
[333811806,1722526059541,-500.0,0.00014246,2]
[333811807,1722526059564,-500.0,0.00014246,2]
[333811808,1722526059586,-500.0,0.00014246,2]
[333811809,1722526059608,-500.0,0.00014246,2]
[333811810,1722526059630,-500.0,0.00014246,2]
[333811811,1722526059652,-500.0,0.00014246,2]
[333811812,1722526059675,-617.61400329,0.00014246,2]
[333811813,1722526059697,-500.0,0.00014246,2]
[333811814,1722526059718,-500.0,0.00014246,2]
[333811815,1722526059740,-500.0,0.00014246,2]
[333811816,1722526059761,-455.37241177,0.00014246,2]
[333811817,1722526059783,-500.0,0.00014246,2]
[333811818,1722526059892,-500.0,0.00014246,2]
[333811819,1722526059916,-500.0,0.00014246,2]
[333811820,1722526059942,-500.0,0.00014246,2]
[333811821,1722526059971,-327.07571737,0.00014246,2]
[333811822,1722526059992,-500.0,0.00014246,2]
[333811823,1722526060014,-500.0,0.00014246,2]
[333811824,1722526060036,-500.0,0.00014246,2]
[333811825,1722526060059,-500.0,0.00014246,2]
[333811826,1722526060081,-500.0,0.00014246,2]
[333811827,1722526060104,-500.0,0.00014246,2]
[333811828,1722526060125,-500.0,0.00014246,2]
[333811829,1722526060147,-500.0,0.00014246,2]
[333811830,1722526060171,-500.0,0.00014246,2]
[333811831,1722526060196,-500.0,0.00014246,2]
[333811832,1722526060225,-500.0,0.00014246,2]
[333811833,1722526060246,-500.0,0.00014246,2]
[333811834,1722526060268,-1212.13,0.00014246,2]
[333811835,1722526060291,-500.0,0.00014246,2]
[333811836,1722526060313,-1077.73,0.00014246,2]
[333811837,1722526060335,-500.0,0.00014246,2]
[333811838,1722526060356,-500.0,0.00014246,2]
[333811839,1722526060379,-500.0,0.00014246,2]
[333811840,1722526060400,-319.72917475,0.00014246,2]
[333811841,1722526060426,-500.0,0.00014246,2]
[333811842,1722526060459,-500.0,0.00014246,2]
[333811843,1722526060481,-555.92,0.00014246,2]
[333811844,1722526060503,-500.0,0.00014246,2]
[333811845,1722526060524,-637.27,0.00014246,2]
[333811846,1722526060547,-500.0,0.00014246,2]
[333811847,1722526060568,-500.0,0.00014246,2]
[333811848,1722526060590,-500.0,0.00014246,2]
[333811849,1722526060613,-576.59,0.00014246,2]
[333811850,1722526060634,-500.0,0.00014246,2]
[333811851,1722526060656,-500.0,0.00014246,2]
[333811852,1722526060677,-519.42702461,0.00014246,2]
[333811853,1722526060708,-500.0,0.00014246,2]
[333811854,1722526060729,-377.49011062,0.00014246,2]
[333811855,1722526060751,-508.86450463,0.00014246,2]
[333811856,1722526060772,-500.0,0.00014246,2]
[333811857,1722526060794,-204.76793045,0.00014246,2]
[333811858,1722526060817,-500.0,0.00014246,2]
[333811859,1722526060840,-522.23,0.00014246,2]
[333811860,1722526060863,-500.0,0.00014246,2]
[333811861,1722526060885,-500.0,0.00014246,2]
[333811862,1722526060907,-541.8,0.00014246,2]
[333811863,1722526060930,-923.56,0.00014246,2]
[333811864,1722526060964,-517.30697597,0.00014246,2]
[333811865,1722526060986,-505.69510926,0.00014246,2]
[333811866,1722526061007,-801.84,0.00014246,2]
[333811867,1722526061028,-500.0,0.00014246,2]
[333811868,1722526061050,-500.0,0.00014246,2]
[333811869,1722526061071,-500.0,0.00014246,2]
[333811870,1722526061092,-513.97612412,0.00014246,2]
[333811871,1722526061114,-500.0,0.00014246,2]
[333811872,1722526061136,-500.0,0.00014246,2]
[333811873,1722526061161,-500.0,0.00014246,2]
[333811874,1722526061187,-500.0,0.00014246,2]
[333811875,1722526061219,-1755.58,0.00014246,2]
[333811876,1722526061240,-500.0,0.00014246,2]
[333811877,1722526061260,-500.0,0.00014246,2]
[333811878,1722526061280,-500.0,0.00014246,2]
[333811879,1722526061305,-500.0,0.00014246,2]
[333811880,1722526061326,-500.0,0.00014246,2]
[333811881,1722526061347,-500.0,0.00014246,2]
[333811882,1722526061367,-500.0,0.00014246,2]
[333811883,1722526061392,-716.89,0.00014246,2]